[Event "2nd Asian Nations Team Cup U14 2019"]
[Site "Shenzhen"]
[Date "2019.12.23"]
[Round "5.20"]
[White "Wu, Yixing"]
[Black "Ebrahimi Herab, Hamidreza"]
[Result "0-1"]
[ECO "D77"]
[WhiteElo "1767"]
[BlackElo "2053"]
[Annotator "NA RC"]
[PlyCount "64"]
[EventDate "2019.12.19"]
[EventType "team-tourn"]
[EventCountry "CHN"]
[SourceTitle "playchess.com"]
[Source "ChessBase"]
[SourceQuality "1"]
[WhiteTeam "China"]
[BlackTeam "Iran"]
[WhiteTeamCountry "CHN"]
[BlackTeamCountry "IRI"]
[TimeControl "5400+30"]

{[%evp 11,62,24,32767,32767,32767,32767,26,32767,31,32767,38,0,22,13,10,-7,-8,0,-5,0,0,0,0,-216,-223,-239,-239,-277,-256,-261,-210,-256,-279,-335,-420,-354,-400,-792,-954,-2019,-2098,-2381,-5006,-4927,-710,-5912,-10256,-29984,-29982,-29981,-29983,-29983,-29985]} 1. Nf3 {[%emt 0:00:00]} Nf6 {[%emt 0:00:00]} 2. g3 {[%emt 0:00:00]} g6 {[%emt 0:00:00]} 3. Bg2 {[%emt 0:00:00]} Bg7 {[%emt 0:00:00]} 4. O-O {[%emt 0:00:00]} O-O {[%emt 0:00:00]} 5. d4 {[%emt 0:00:00]} d5 {[%emt 0:00:03]} 6. c4 {[%emt 0:00:23]} dxc4 {[%emt 0:00:19]} 7. Na3 {[%emt 0:00:00]} c3 {[%emt 0:00:09]} 8. bxc3 {[%emt 0:00:00]} c5 {[%emt 0:00:44]} 9. e3 {[%emt 0:00:54]} Nc6 {[%emt 0:01:55]} 10. Nc4 {[%emt 0:00:34] D77: Fianchetto Grünfeld: 6 0-0: Replies other than 6...c6} (10. Qe2 Bf5 11. Rd1 Qb6 12. Nc4 Qa6 13. Bf1 Rfd8 14. a4 Rac8 15. Bb2 b6 16. h3 h5 17. d5 Na5 18. Nxa5 Qxe2 19. Bxe2 bxa5 {½-½ (41) Melkumyan,H (2633)-Salem,A (2638) Riadh 2017}) 10... Bf5 {[%emt 0:04:07]} 11. Nfe5 {[%emt 0:06:33]} Be4 $146 {[%emt 0:04:40]} ({Predecessor:} 11... Nd5 12. Nxc6 bxc6 13. Qd2 Be6 14. Ba3 Nb4 15. Nb2 Na6 16. Nd3 Bc4 17. Rfd1 Bxd3 18. Qxd3 {1-0 (64) Szabo,A (2306)-Burnoiu,N (2403) Baia Sprie 2010}) 12. Nxc6 {[%emt 0:00:28]} ({But not} 12. dxc5 Nxe5 13. Qxd8 Rfxd8 $15) 12... bxc6 {[%emt 0:05:35]} 13. Bxe4 {[%emt 0:04:35]} Nxe4 {[%emt 0:00:07]} 14. Qd3 {[%emt 0:00:30]} Qd5 {[%emt 0:05:50]} 15. f3 {[%emt 0:02:48]} Nxc3 {[%emt 0:15:55]} 16. Qxc3 {[%emt 0:00:42]} cxd4 {[%emt 0:00:13]} 17. e4 $2 {[%emt 0:00:11]} (17. Qb3 $1 $11 {and White has nothing to worry.}) 17... dxc3 {[%emt 0:00:25]} 18. exd5 {[%emt 0:00:16]} cxd5 {[%emt 0:00:05]} 19. Na3 {[%emt 0:07:27]} d4 {[%emt 0:02:32]} 20. Rd1 {[%emt 0:02:22]} Rad8 {[%emt 0:00:17]} 21. Rd3 {[%emt 0:02:36] [#]} e5 $1 {[%emt 0:00:32]} 22. Nb5 {[%emt 0:07:51]} f5 {[%emt 0:03:20]} 23. Ba3 {[%emt 0:03:19]} e4 {[%emt 0:01:55]} 24. Bxf8 {[%emt 0:12:22]} (24. fxe4 $142 fxe4 25. Rxd4 Rxd4 26. Bxf8) 24... exd3 {[%emt 0:00:17]} 25. Bxg7 {[%emt 0:02:19]} Kxg7 {[%emt 0:00:08]} 26. Kf2 {[%emt 0:00:39]} d2 {[%emt 0:00:15]} 27. Na3 {[%emt 0:04:54]} d3 {[%emt 0:00:24]} 28. Nc4 {[%emt 0:02:54]} Re8 {[%emt 0:00:40]} 29. Kf1 {[%emt 0:08:15]} (29. Nxd2 Re2+ {[%mdl 64] Double Attack} 30. Kg1 Rxd2) 29... Re2 {[%emt 0:00:57]} 30. Na3 {[%emt 0:10:05]} c2 {[%emt 0:01:06]} 31. Nxc2 {[%emt 0:00:15]} dxc2 {[%emt 0:00:02]} 32. Kxe2 {[%emt 0:00:48]} c1=Q {[%emt 0:00:07]} 0-1

[Event "2nd Asian Nations Team Cup U14 2019"]
[Site "Shenzhen"]
[Date "2019.12.23"]
[Round "6.1"]
[White "Yin, Richard"]
[Black "Xue, Haowen"]
[Result "0-1"]
[ECO "B92"]
[WhiteElo "1427"]
[BlackElo "1909"]
[Annotator "NA RC"]
[PlyCount "116"]
[EventDate "2019.12.19"]
[EventType "team-tourn"]
[EventCountry "CHN"]
[SourceTitle "playchess.com"]
[Source "ChessBase"]
[SourceQuality "1"]
[WhiteTeam "Hong Kong"]
[BlackTeam "China"]
[WhiteTeamCountry "HKG"]
[BlackTeamCountry "CHN"]
[TimeControl "5400+30"]

{[%evp 8,116,25,16,39,27,17,17,14,14,16,15,27,0,0,0,0,-11,0,-18,-2,-5,14,-17,-13,-20,-9,-25,-33,-39,-34,32767,32767,32767,32767,32767,32767,32767,32767,32767,32767,32767,32767,32767,32767,32767,-3,32767,32767,32767,32767,32767,32767,32767,32767,32767,32767,32767,32767,32767,32767,-214,32767,32767,32767,32767,32767,32767,-195,32767,32767,32767,32767,32767,32767,32767,32767,32767,32767,32767,32767,32767,32767,32767,32767,32767,32767,32767,32767,32767,32767,-579,-578,-604,-596,-680,-656,-611,-768,-945,-1029,-792,-1404,-897,-1791,-1393,-1065,-2004,-9821,-5501,-1843]} 1. e4 {[%emt 0:00:00]} c5 {[%emt 0:00:00]} 2. Nf3 {[%emt 0:00:11]} d6 {[%emt 0:00:00]} 3. d4 {[%emt 0:00:04]} Nf6 {[%emt 0:00:00]} 4. Nc3 {[%emt 0:04:14]} cxd4 {[%emt 0:00:04]} 5. Nxd4 {[%emt 0:00:13]} a6 {[%emt 0:00:06]} 6. Be2 {[%emt 0:00:10]} e5 {[%emt 0:00:05]} 7. Nb3 {[%emt 0:01:39]} Be7 {[%emt 0:00:24]} 8. O-O {[%emt 0:02:21]} O-O {[%emt 0:00:03]} 9. Be3 {[%emt 0:03:17]} Be6 {[%emt 0:00:15]} 10. f4 {[%emt 0:05:51]} exf4 {[%emt 0:03:05]} 11. Bxf4 {[%emt 0:00:34]} Nc6 {[%emt 0:00:05]} 12. Kh1 {[%emt 0:01:15]} Rc8 {[%emt 0:00:48]} 13. Nd4 {[%emt 0:10:43] B92: Sicilian Najdorf: 6 Be2} (13. Qd2 Re8 14. Rad1 Ne5 15. Nd4 Qb6 16. Na4 Qc7 17. Nc3 Qb6 18. Na4 Qa7 19. Nc3 b5 20. a3 Nc4 21. Bxc4 Bxc4 {0-1 (46) Massoni,M (2360)-Areshchenko,A (2656) Grosseto Prugna 2015}) 13... Nxd4 {[%emt 0:02:10]} 14. Qxd4 {[%emt 0:01:36]} Qc7 {[%emt 0:00:55]} 15. Qe3 $146 {[%emt 0:08:53]} ({Predecessor:} 15. Rad1 Rfd8 16. Rd2 Qc5 17. Rfd1 Qxd4 18. Rxd4 Ne8 19. e5 d5 20. Bf3 Nc7 {½-½ (60) Chattarjee,L (2046)-Suvrajit,S (2234) Bampada 2017}) 15... Nd7 {[%emt 0:01:01]} 16. Rad1 {[%emt 0:00:41]} Ne5 {[%emt 0:00:26]} 17. Qg3 {[%emt 0:01:54]} Bf6 {[%emt 0:11:41]} 18. Bh6 {[%emt 0:05:53]} Qe7 {[%emt 0:00:05]} 19. Bf4 {[%emt 0:08:15]} Rfd8 {[%emt 0:01:45]} 20. Rd2 {[%emt 0:01:15]} Bh4 {[%emt 0:03:21]} 21. Qe3 {[%emt 0:01:45]} Ng6 {[%emt 0:00:16]} 22. g3 {[%emt 0:08:24]} Bf6 {[%emt 0:00:20]} 23. Nd5 Bxd5 {[%emt 0:00:13]} 24. exd5 {[%emt 0:02:46]} Qxe3 25. Bxe3 {[%emt 0:00:49]} Bxb2 26. c4 {[%emt 0:02:43]} Ba3 {[%emt 0:08:09]} 27. Rb1 {[%emt 0:01:32]} Re8 {[%emt 0:00:52]} 28. Rd3 {[%emt 0:00:48]} Bc5 {[%emt 0:00:42]} 29. Bg4 {[%emt 0:01:55]} Ne5 {[%emt 0:00:39]} 30. Bxc8 {[%emt 0:01:02]} Nxd3 {[%emt 0:00:03]} 31. Bxc5 {[%emt 0:00:05]} Nxc5 {[%emt 0:00:10]} 32. Bxb7 {[%emt 0:03:54]} Rb8 {[%emt 0:00:29]} 33. Rb6 {[%emt 0:00:03]} Nxb7 {[%emt 0:01:21]} 34. a4 {[%emt 0:00:40]} a5 {[%emt 0:00:45]} 35. Kg2 {[%emt 0:00:31]} Kf8 {[%emt 0:00:31]} 36. Kf3 {[%emt 0:00:15]} Ke7 {[%emt 0:00:23]} 37. Ke3 {[%emt 0:00:34]} Kd7 {[%emt 0:02:38]} 38. Kf4 {[%emt 0:03:01]} f6 {[%emt 0:06:44]} 39. Kf5 {[%emt 0:02:59]} Ke7 {[%emt 0:00:16]} 40. h3 {[%emt 0:01:41]} g6+ {[%emt 0:00:58]} 41. Kf4 {[%emt 0:00:32]} h6 {[%emt 0:03:13]} 42. Kf3 {[%emt 0:01:23]} f5 {[%emt 0:00:56]} 43. Kf2 {[%emt 0:02:33]} g5 {[%emt 0:00:47]} 44. Kg2 {[%emt 0:05:07]} h5 {[%emt 0:02:06]} 45. Kf2 {[%emt 0:01:57]} f4 {[%emt 0:00:56]} 46. Kf3 {[%emt 0:00:46]} fxg3 47. Kxg3 {[%emt 0:00:05]} g4 48. hxg4 {[%emt 0:00:51]} hxg4 {[%emt 0:01:09]} 49. Kxg4 {[%emt 0:06:05]} Rg8+ {[%emt 0:00:42]} 50. Kf5 {[%emt 0:00:02]} Nc5 {[%emt 0:00:29]} 51. Rb1 {[%emt 0:00:52]} Rf8+ {[%emt 0:00:24]} 52. Kg6 {[%emt 0:00:16]} Rf4 {[%emt 0:01:10]} 53. Rc1 {[%emt 0:00:08]} Nxa4 {[%emt 0:00:18]} 54. Kg5 {[%emt 0:00:14]} Re4 {[%emt 0:00:19]} 55. Kf5 {[%emt 0:00:12]} Nc5 {[%emt 0:00:17]} 56. Ra1 {[%emt 0:00:17]} Re5+ {[%emt 0:00:13]} 57. Kf4 {[%emt 0:00:14]} a4 {[%emt 0:00:04]} 58. Rh1 {[%emt 0:00:30]} Re4+ $19 {[%emt 0:00:27]} 0-1

[Event "2nd Asian Nations Team Cup U14 2019"]
[Site "Shenzhen"]
[Date "2019.12.23"]
[Round "6.2"]
[White "Wang, Xiaozhi"]
[Black "Lam, Chun Yung Samuel"]
[Result "1-0"]
[ECO "D02"]
[WhiteElo "1872"]
[BlackElo "1288"]
[Annotator "NA RC"]
[PlyCount "141"]
[EventDate "2019.12.19"]
[EventType "team-tourn"]
[EventCountry "CHN"]
[SourceTitle "playchess.com"]
[Source "ChessBase"]
[SourceQuality "1"]
[WhiteTeam "China"]
[BlackTeam "Hong Kong"]
[WhiteTeamCountry "CHN"]
[BlackTeamCountry "HKG"]
[TimeControl "5400+30"]

{[%evp 10,137,0,32767,32767,32767,32767,32767,32767,32767,0,-26,5,12,48,37,45,40,66,72,116,0,0,0,397,335,313,297,287,286,351,300,310,292,387,156,179,32767,32767,32767,32767,32767,32767,32767,32767,32767,32767,2,0,0,8,2,0,-2,32767,32767,32767,32767,32767,32767,32767,32767,32767,32767,32767,32767,32767,32767,32767,32767,32767,32767,32767,32767,32767,32767,32767,32767,32767,32767,32767,32767,234,256,332,350,373,406,518,570,658,923,664,619,802,747,1076,1426,2433,10775,2179,5601,29965,29964,32767,32767,32767,32767,29963,9418,29975,29982,4923,29953,5027,7515,5949,1912,29959,29980,29973,29978,29980,29979,29982,29983,12845,29983,29983,29982]} 1. d4 {[%emt 0:00:00]} d5 {[%emt 0:00:00]} 2. Bf4 {[%emt 0:00:00]} Nf6 {[%emt 0:00:00]} 3. e3 {[%emt 0:00:00]} e6 {[%emt 0:00:00]} 4. Nf3 {[%emt 0:00:00]} Bd6 {[%emt 0:00:00]} 5. Bg3 {[%emt 0:00:00]} O-O {[%emt 0:00:06]} 6. Nbd2 {[%emt 0:00:00]} Nbd7 {[%emt 0:01:33] D02: 1 d4 d5 2 Nf3 sidelines, including 2...Nf6 3 g3 and 2...Nf6 3 Bf4} (6... b6 7. c3 Bb7 8. Bd3 Nbd7 9. Qc2 Bxg3 10. hxg3 h6 11. Rh4 c5 12. Ne5 Rc8 13. f4 a6 14. a4 cxd4 15. exd4 Nxe5 16. fxe5 {0-1 (35) Carlsen,M (2882)-Aronian,L (2765) Saint Louis 2019}) 7. Bd3 {[%emt 0:00:37]} b6 {[%emt 0:01:04]} 8. Ne5 {[%emt 0:00:21]} Bb7 {[%emt 0:01:06]} 9. Qf3 {[%emt 0:02:38]} Qe7 {[%emt 0:04:32]} 10. Bf4 {[%emt 0:02:37]} c5 {[%emt 0:03:28]} (10... Bxe5 $5 11. dxe5 Ne4 $11) 11. c3 {[%emt 0:00:49]} Bxe5 $146 {[%emt 0:01:28]} ({Predecessor:} 11... Rac8 12. Qh3 g6 13. Ndf3 Nh5 14. Bg3 cxd4 15. exd4 {0-1 (42) Alvarez Mendoza,R (1561)-Cancino,J (1654) Gobernacion 2015}) 12. dxe5 {[%emt 0:01:39]} Ne8 {[%emt 0:00:07]} 13. Qh3 {[%emt 0:01:12]} f5 {[%emt 0:00:26]} 14. Nf3 {[%emt 0:04:31]} h6 {[%emt 0:01:21]} 15. g4 {[%emt 0:05:58]} (15. O-O-O $16) 15... fxg4 $1 {[%emt 0:04:50]} 16. Qxg4 {[%emt 0:00:05]} g5 $2 {[%emt 0:01:15]} (16... d4 $1 $11 {and Black stays safe.}) 17. h4 {[%emt 0:02:47]} d4 {[%emt 0:01:17]} 18. hxg5 {[%emt 0:08:13]} Bxf3 {[%emt 0:01:11]} 19. Qxf3 {[%emt 0:01:41]} Nxe5 {[%emt 0:03:26]} 20. Qe4 {[%emt 0:03:30]} ({Less strong is} 20. Qxa8 Nxd3+ 21. Ke2 Nxf4+ 22. exf4 hxg5 $16) 20... Nxd3+ {[%emt 0:00:00]} 21. Qxd3 {[%emt 0:00:03]} hxg5 {[%emt 0:00:00]} 22. O-O-O $2 {[%emt 0:02:06]} ({Less strong is} 22. Qg6+ Qg7 $18) (22. Be5 $18 Rf6 23. O-O-O) 22... Rf5 {[%emt 0:04:18]} 23. Rdg1 {[%emt 0:09:49]} Ng7 {[%emt 0:01:10]} 24. Qe4 {[%emt 0:02:17]} Raf8 {[%emt 0:01:51]} 25. Be5 {[%emt 0:00:27]} dxe3 {[%emt 0:03:56]} 26. fxe3 {[%emt 0:03:45]} R8f7 {[%emt 0:04:27]} 27. Kb1 {[%emt 0:03:03]} Qb7 28. Qxb7 {[%emt 0:03:07]} Rxb7 {[%emt 0:00:32]} 29. Bd6 {[%emt 0:00:47]} Rd7 {[%emt 0:00:45]} 30. e4 {[%emt 0:00:30]} Rf2 {[%emt 0:00:45]} 31. e5 {[%emt 0:03:13]} Rf5 {[%emt 0:00:53]} 32. Rh6 {[%emt 0:01:35]} Kf7 {[%emt 0:00:45]} 33. Rh8 {[%emt 0:03:30]} Rb7 {[%emt 0:04:44]} 34. Rgh1 {[%emt 0:04:07]} Rd7 {[%emt 0:00:46]} 35. R1h6 {[%emt 0:06:41]} Rf1+ {[%emt 0:01:14]} 36. Kc2 {[%emt 0:00:13]} Nf5 {[%emt 0:02:14]} 37. R6h7+ {[%emt 0:01:40]} Ng7 {[%emt 0:00:54]} 38. Rf8+ {[%emt 0:00:55]} Kg6 {[%emt 0:00:11]} 39. Rxg7+ Rxg7 {[%emt 0:00:56]} 40. Rxf1 {[%emt 0:00:10]} g4 {[%emt 0:00:28]} 41. Bf8 {[%emt 0:06:43]} Rh7 {[%emt 0:00:46]} 42. Kd3 {[%emt 0:03:09]} Kg5 {[%emt 0:00:34]} 43. Ke4 {[%emt 0:02:32]} Rh2 {[%emt 0:04:43]} 44. Be7+ {[%emt 0:01:29]} Kh5 {[%emt 0:02:50]} 45. b4 {[%emt 0:03:11]} cxb4 {[%emt 0:03:48]} 46. cxb4 {[%emt 0:00:03]} a5 {[%emt 0:03:52]} 47. bxa5 {[%emt 0:01:17]} bxa5 {[%emt 0:00:13]} 48. a3 {[%emt 0:00:01]} a4 {[%emt 0:08:00]} 49. Kf4 {[%emt 0:01:40]} Re2 {[%emt 0:02:38]} 50. Rh1+ {[%emt 0:00:59]} Kg6 {[%emt 0:00:36]} 51. Bd6 {[%emt 0:00:23]} Rg2 {[%emt 0:01:00]} 52. Rh4 {[%emt 0:00:12]} g3 {[%emt 0:03:56]} 53. Rg4+ {[%emt 0:00:50]} Kh5 {[%emt 0:01:04]} 54. Rxg3 {[%emt 0:00:05]} Rb2 {[%emt 0:02:02]} 55. Ke4 {[%emt 0:00:14]} Kh4 {[%emt 0:01:35]} 56. Rc3 {[%emt 0:04:35]} Kg5 {[%emt 0:02:56]} 57. Rc4 Rf2 {[%emt 0:00:58]} 58. Kd4 {[%emt 0:00:00]} Kf5 {[%emt 0:00:56]} 59. Kc5 {[%emt 0:00:00]} Ra2 {[%emt 0:03:05]} 60. Rxa4 {[%emt 0:00:00]} Kg6 {[%emt 0:00:15]} 61. Ra7 {[%emt 0:00:00]} Kf5 {[%emt 0:00:16]} 62. a4 {[%emt 0:00:00]} Ke4 {[%emt 0:00:06]} 63. a5 {[%emt 0:00:00]} Rb2 {[%emt 0:01:03]} 64. a6 {[%emt 0:00:00]} Rc2+ {[%emt 0:00:59]} 65. Kb6 {[%emt 0:00:00]} Rb2+ {[%emt 0:00:20]} 66. Kc7 {[%emt 0:00:00]} Kd5 {[%emt 0:00:15]} 67. Rb7 {[%emt 0:00:00]} Rc2+ {[%emt 0:00:17]} 68. Kd7 {[%emt 0:00:00]} Rh2 {[%emt 0:01:04]} 69. a7 {[%emt 0:00:00]} Rh7+ {[%emt 0:00:24]} 70. Be7 {[%emt 0:00:00]} Rh8 {[%emt 0:00:56]} 71. Rb8 {[%emt 0:00:00]} 1-0

[Event "2nd Asian Nations Team Cup U14 2019"]
[Site "Shenzhen"]
[Date "2019.12.23"]
[Round "6.3"]
[White "Li, Yucheng Robinson"]
[Black "Lu, Miaoyi"]
[Result "0-1"]
[ECO "A35"]
[WhiteElo "1185"]
[BlackElo "1787"]
[Annotator "NA RC"]
[PlyCount "166"]
[EventDate "2019.12.19"]
[EventType "team-tourn"]
[EventCountry "CHN"]
[SourceTitle "playchess.com"]
[Source "ChessBase"]
[SourceQuality "1"]
[WhiteTeam "Hong Kong"]
[BlackTeam "China"]
[WhiteTeamCountry "HKG"]
[BlackTeamCountry "CHN"]
[TimeControl "5400+30"]

1. e4 {[%emt 0:00:09]} c6 {[%emt 0:00:00]} 2. d4 {[%emt 0:00:23]} d5 {[%emt 0:00:00]} 3. exd5 {[%emt 0:00:13]} cxd5 {[%emt 0:00:00]} 4. c4 {[%emt 0:00:11]} Nf6 {[%emt 0:00:00]} 5. Nc3 {[%emt 0:00:09]} Nc6 {[%emt 0:00:00]} 6. Nf3 {[%emt 0:00:19]} g6 {[%emt 0:00:30]} 7. cxd5 {[%emt 0:00:34]} Nxd5 {[%emt 0:00:09]} 8. Bc4 {[%emt 0:00:18]} Nxc3 {[%emt 0:01:17]} 9. bxc3 {[%emt 0:00:08]} Bg7 {[%emt 0:00:19]} 10. O-O {[%emt 0:00:43]} O-O {[%emt 0:00:38]} 11. Bb2 {[%emt 0:06:11]} Bg4 {[%emt 0:07:17]} 12. h3 {[%emt 0:00:00]} Bxf3 {[%emt 0:00:03]} 13. Qxf3 {[%emt 0:00:00]} Qc7 {[%emt 0:04:43]} 14. Bb3 {[%emt 0:05:22]} e6 {[%emt 0:05:27]} 15. Rac1 {[%emt 0:00:00]} Rfd8 {[%emt 0:00:31]} 16. Rfd1 {[%emt 0:01:53]} Rac8 {[%emt 0:02:16]} 17. d5 {[%emt 0:00:00]} exd5 {[%emt 0:02:55]} 18. Rxd5 {[%emt 0:06:56]} Ne5 {[%emt 0:08:32]} 19. Qe3 {[%emt 0:03:07]} Rxd5 {[%emt 0:09:16]} 20. Bxd5 {[%emt 0:00:00]} b5 {[%emt 0:01:14]} 21. Qf4 {[%emt 0:05:35]} Nd3 {[%emt 0:04:10]} 22. Qxc7 {[%emt 0:00:00]} Rxc7 {[%emt 0:00:02]} 23. Rc2 {[%emt 0:00:00]} Nb4 {[%emt 0:12:03]} 24. Rd2 {[%emt 0:00:00]} Bxc3 {[%emt 0:00:26]} 25. Bxc3 Rxc3 {[%emt 0:00:03]} 26. Bb3 {[%emt 0:00:00]} Nd3 {[%emt 0:09:50]} 27. Re2 {[%emt 0:00:00]} Nc1 {[%emt 0:02:20]} 28. Re8+ {[%emt 0:00:00]} Kg7 {[%emt 0:00:02]} 29. Bd5 Rd3 {[%emt 0:05:12]} 30. Bc6 {[%emt 0:00:00]} a6 {[%emt 0:08:37]} 31. Ra8 {[%emt 0:00:00]} Nxa2 {[%emt 0:00:44]} 32. Bxb5 {[%emt 0:00:33]} axb5 {[%emt 0:00:32]} 33. Rxa2 {[%emt 0:00:00]} Rd7 {[%emt 0:04:27]} 34. Rb2 {[%emt 0:00:00]} Rb7 {[%emt 0:00:07]} 35. Kf1 {[%emt 0:00:00]} Kf6 {[%emt 0:00:19]} 36. Ke2 {[%emt 0:00:00]} Ke5 {[%emt 0:00:09]} 37. Kd3 {[%emt 0:00:00]} Kd5 {[%emt 0:00:21]} 38. Kc3 {[%emt 0:00:00]} Kc5 {[%emt 0:03:37]} 39. Kb3 {[%emt 0:00:00]} Rd7 {[%emt 0:01:02]} 40. Rc2+ {[%emt 0:00:00]} Kb6 {[%emt 0:00:02]} 41. Re2 {[%emt 0:00:00]} Rd3+ {[%emt 0:01:29]} 42. Kb4 {[%emt 0:00:00]} Rd4+ {[%emt 0:00:22]} 43. Kb3 {[%emt 0:00:07]} Kc6 44. Rc2+ Kd5 45. Rc7 Rf4 46. f3 Kd6 47. Rb7 Kc6 48. Re7 Rf5 49. Re4 Kc5 50. Kc3 h5 51. Re3 h4 52. Re4 Rg5 53. Re2 f6 54. f4 Rg3+ 55. Kb2 Kd4 56. Kc2 b4 57. Kb2 b3 58. Rf2 Ke3 59. Rf1 Rxg2+ 60. Kxb3 {[%emt 0:06:49]} Rg3 {[%emt 0:16:45]} 61. Kc4 {[%emt 0:02:08]} Rxh3 {[%emt 0:00:29]} 62. Kd5 {[%emt 0:02:13]} Rf3 {[%emt 0:00:23]} 63. Rg1 {[%emt 0:00:18]} Rg3 {[%emt 0:00:17]} 64. Rh1 {[%emt 0:00:08]} h3 {[%emt 0:00:49]} 65. Ke6 {[%emt 0:00:11]} Kxf4 {[%emt 0:00:30]} 66. Kxf6 {[%emt 0:00:06]} Kf3 {[%emt 0:00:09]} 67. Rh2 {[%emt 0:00:10]} g5 {[%emt 0:00:06]} 68. Ra2 {[%emt 0:00:06]} g4 {[%emt 0:00:53]} 69. Kg5 {[%emt 0:00:11]} Rg2 {[%emt 0:00:27]} 70. Ra3+ Ke4 {[%emt 0:00:41]} 71. Ra4+ {[%emt 0:00:30]} Kd3 {[%emt 0:00:10]} 72. Ra3+ {[%emt 0:00:08]} Kc4 {[%emt 0:00:14]} 73. Ra4+ {[%emt 0:00:07]} Kb3 {[%emt 0:00:02]} 74. Rxg4 {[%emt 0:00:08]} Rxg4+ {[%emt 0:00:03]} 75. Kxg4 {[%emt 0:00:06]} h2 {[%emt 0:00:04]} 76. Kg3 {[%emt 0:00:10]} h1=Q {[%emt 0:00:05]} 77. Kg4 {[%emt 0:00:05]} Qf1 {[%emt 0:00:07]} 78. Kh5 {[%emt 0:00:10]} Qg2 {[%emt 0:00:02]} 79. Kh6 {[%emt 0:00:06]} Kc4 {[%emt 0:00:02]} 80. Kh7 {[%emt 0:00:07]} Kd5 {[%emt 0:00:09]} 81. Kh6 {[%emt 0:00:10]} Ke6 {[%emt 0:00:58]} 82. Kh5 {[%emt 0:01:06]} Kf5 {[%emt 0:00:00]} 83. Kh4 {[%emt 0:00:12]} Qg4# {[%emt 0:00:00] Kg5+ Qxg5} 0-1

[Event "2nd Asian Nations Team Cup U14 2019"]
[Site "Shenzhen"]
[Date "2019.12.23"]
[Round "6.4"]
[White "Wu, Yixing"]
[Black "Huang, Yuen Tung"]
[Result "1-0"]
[ECO "D79"]
[WhiteElo "1767"]
[BlackElo "1293"]
[Annotator "NA RC"]
[PlyCount "105"]
[EventDate "2019.12.19"]
[EventType "team-tourn"]
[EventCountry "CHN"]
[SourceTitle "playchess.com"]
[Source "ChessBase"]
[SourceQuality "1"]
[WhiteTeam "China"]
[BlackTeam "Hong Kong"]
[WhiteTeamCountry "CHN"]
[BlackTeamCountry "HKG"]
[TimeControl "5400+30"]

1. Nf3 {[%emt 0:00:00]} d5 {[%emt 0:00:00]} 2. g3 {[%emt 0:00:00]} g6 {[%emt 0:00:00]} 3. Bg2 {[%emt 0:00:00]} Bg7 {[%emt 0:00:00]} 4. d4 {[%emt 0:00:00]} Nf6 {[%emt 0:00:04]} 5. O-O {[%emt 0:00:00]} O-O {[%emt 0:00:10]} 6. c4 {[%emt 0:00:02]} c6 {[%emt 0:00:57]} 7. cxd5 {[%emt 0:00:05]} cxd5 {[%emt 0:00:05]} 8. Ne5 {[%emt 0:00:03]} Nbd7 {[%emt 0:01:05]} 9. Nc3 {[%emt 0:00:30]} e6 {[%emt 0:01:44]} 10. Nd3 {[%emt 0:01:19]} a6 {[%emt 0:04:36]} 11. b3 {[%emt 0:00:53]} b5 {[%emt 0:01:31]} 12. a4 {[%emt 0:00:52]} Rb8 {[%emt 0:08:46]} 13. Bf4 {[%emt 0:02:12]} Rb7 {[%emt 0:01:22]} 14. axb5 {[%emt 0:00:20]} axb5 {[%emt 0:00:12]} 15. Nb4 {[%emt 0:00:54]} Re8 {[%emt 0:10:19]} 16. Ra6 {[%emt 0:05:20]} Rb6 {[%emt 0:11:50]} 17. Nc6 {[%emt 0:00:16]} Rxc6 {[%emt 0:00:07]} 18. Rxc6 {[%emt 0:00:04]} e5 {[%emt 0:13:26]} 19. dxe5 {[%emt 0:01:19]} Nxe5 {[%emt 0:00:21]} 20. Bxe5 {[%emt 0:00:04]} Rxe5 {[%emt 0:00:06]} 21. Nxb5 {[%emt 0:02:09]} Qe8 {[%emt 0:02:58]} 22. Nd4 {[%emt 0:00:00]} Bb7 {[%emt 0:01:44]} 23. Rb6 {[%emt 0:00:00]} Ba8 {[%emt 0:00:49]} 24. e3 {[%emt 0:00:00]} Nd7 {[%emt 0:00:55]} 25. Ra6 {[%emt 0:00:00]} Bb7 {[%emt 0:03:40]} 26. Ra7 {[%emt 0:00:00]} Ba8 {[%emt 0:02:13]} 27. Qa1 {[%emt 0:00:45]} Nb6 {[%emt 0:01:18]} 28. Qa5 Rxe3 {[%emt 0:16:24]} 29. Qxb6 {[%emt 0:00:32]} Rc3 {[%emt 0:00:30]} 30. Rfa1 {[%emt 0:00:39]} Rc8 {[%emt 0:00:26]} 31. Rd1 {[%emt 0:01:27]} Rb8 {[%emt 0:01:52]} 32. Qa5 {[%emt 0:00:12]} Rc8 {[%emt 0:03:27]} 33. Bxd5 {[%emt 0:00:30]} Bxd5 {[%emt 0:00:37]} 34. Qxd5 {[%emt 0:00:15]} Rd8 {[%emt 0:00:50]} 35. Qc4 {[%emt 0:00:12]} Rc8 {[%emt 0:05:58]} 36. Qa4 {[%emt 0:00:32]} Qf8 {[%emt 0:04:11]} 37. Nc6 {[%emt 0:00:16]} Bf6 {[%emt 0:01:41]} 38. Qe4 {[%emt 0:00:40]} Re8 {[%emt 0:01:00]} 39. Qb4 {[%emt 0:00:04]} Qh6 {[%emt 0:01:39]} 40. Qc4 {[%emt 0:00:15]} Rf8 {[%emt 0:00:14]} 41. Ne7+ {[%emt 0:00:12]} Bxe7 {[%emt 0:00:12]} 42. Rxe7 {[%emt 0:00:02]} Qg7 {[%emt 0:00:32]} 43. Qd4 {[%emt 0:00:08]} Qh6 {[%emt 0:00:25]} 44. Qf6 {[%emt 0:00:04]} Qg7 45. Qxg7+ {[%emt 0:00:04]} Kxg7 {[%emt 0:00:42]} 46. Rdd7 {[%emt 0:00:04]} Kf6 {[%emt 0:00:19]} 47. b4 {[%emt 0:00:03]} h5 {[%emt 0:00:58]} 48. b5 {[%emt 0:00:03]} Kg7 {[%emt 0:00:53]} 49. b6 {[%emt 0:00:06]} Kg8 {[%emt 0:00:34]} 50. b7 {[%emt 0:00:05]} Kh8 {[%emt 0:00:35]} 51. Rxf7 {[%emt 0:00:05]} Rb8 {[%emt 0:00:10]} 52. Rc7 {[%emt 0:00:10]} Rxb7 {[%emt 0:00:30]} 53. Rc8# {[%emt 0:00:05]} 1-0